bitfinex-derivatives/quotes_BTCF0:USTF0_20250911
["timestamp","ask_amount","ask_price","bid_price","bid_amount"]
[1757550604288,2.37579793,113860.0,113850.0,1.08129902]
[1757550605794,1.57551793,113860.0,113850.0,1.08129902]
[1757550605993,2.37575793,113860.0,113850.0,1.08129902]
[1757550607190,1.57551793,113860.0,113850.0,1.16911222]
[1757550607394,2.01487793,113860.0,113850.0,1.16911222]
[1757550607688,2.01487793,113860.0,113850.0,1.08129902]
[1757550608595,2.37567793,113860.0,113850.0,1.08129902]
[1757550613294,2.37527793,113860.0,113850.0,1.08129902]
[1757550614300,2.37527793,113860.0,113850.0,1.12711048]
[1757550614801,2.37527793,113860.0,113850.0,0.98965057]
[1757550615000,2.37527793,113860.0,113850.0,1.12711048]
[1757550616900,2.37527793,113860.0,113850.0,0.98965057]
[1757550617102,2.37527793,113860.0,113850.0,1.12711048]
[1757550618401,2.51273784,113860.0,113850.0,0.98965057]
[1757550618700,2.51273784,113860.0,113850.0,1.12711048]
[1757550623303,2.37527793,113860.0,113850.0,1.12711048]
[1757550625410,2.51273784,113860.0,113850.0,1.12711048]
[1757550627412,2.37527793,113860.0,113850.0,1.12711048]
[1757550630913,2.51273784,113860.0,113850.0,1.12711048]
[1757550631311,2.65019775,113860.0,113850.0,0.56965057]
[1757550631506,2.65019775,113860.0,113850.0,0.42260333]
[1757550633007,1.57551793,113860.0,113850.0,0.42260333]
[1757550633308,2.26221784,113860.0,113850.0,0.56006324]
[1757550633715,1.57551793,113860.0,113850.0,0.56006324]
[1757550634015,2.12491793,113860.0,113850.0,0.70006324]
[1757550634315,1.32551793,113860.0,113850.0,1.13006324]
[1757550634519,2.12491793,113860.0,113850.0,1.13006324]
[1757550636017,2.26237784,113860.0,113850.0,1.13006324]
[1757550636917,2.12479793,113860.0,113850.0,1.13006324]
[1757550637218,2.26225784,113860.0,113850.0,1.01945991]
[1757550637517,2.26225784,113860.0,113850.0,1.13000097]
[1757550639620,2.26225784,113860.0,113850.0,0.56000097]
[1757550639809,1.46297784,113860.0,113850.0,0.56000097]
[1757550640014,2.26225784,113860.0,113850.0,0.56000097]
[1757550641720,2.26225784,113860.0,113850.0,0.42254106]
[1757550641923,2.26225784,113860.0,113850.0,0.56000097]
[1757550642122,2.26229784,113860.0,113850.0,0.56000097]
[1757550642926,1.46297784,113860.0,113850.0,0.56000097]
[1757550643116,2.26229784,113860.0,113850.0,0.56000097]
[1757550643717,2.26229784,113860.0,113850.0,0.42254106]
[1757550643924,2.26229784,113860.0,113850.0,0.56000097]
[1757550645924,1.46297784,113860.0,113850.0,1.07000097]
[1757550646129,2.26229784,113860.0,113850.0,0.56000097]
[1757550647327,1.46297784,113860.0,113850.0,0.56000097]
[1757550647528,2.26261784,113860.0,113850.0,1.07000097]
[1757550647718,2.26261784,113860.0,113850.0,0.56000097]
[1757550647918,2.12515793,113860.0,113850.0,0.56000097]
[1757550648118,2.26261784,113860.0,113850.0,0.44945991]
[1757550649927,2.26261784,113860.0,113850.0,0.52998963]
[1757550650327,2.26261784,113860.0,113850.0,0.41945991]
[1757550652532,2.12515793,113860.0,113850.0,0.41945991]
[1757550652832,2.26261784,113860.0,113850.0,0.41945991]
[1757550657934,2.26261784,113860.0,113850.0,0.282]
[1757550658128,2.26261784,113860.0,113850.0,0.41945991]
[1757550658332,2.26261784,113860.0,113850.0,1.00945991]
[1757550660841,2.26261784,113860.0,113850.0,0.872]
[1757550661043,2.26261784,113860.0,113850.0,1.00945991]
[1757550662733,2.26261784,113860.0,113850.0,0.41945991]
[1757550662939,2.26261784,113860.0,113850.0,0.52945991]
[1757550663635,2.26261784,113860.0,113850.0,0.282]
[1757550663831,2.26261784,113860.0,113850.0,0.53945991]
[1757550664037,2.26261784,113860.0,113850.0,0.61147991]
[1757550664240,2.26229784,113860.0,113850.0,0.99147991]
[1757550664440,2.26229784,113860.0,113850.0,0.63147991]
[1757550664837,1.32551793,113860.0,113850.0,1.23893982]
[1757550665037,1.76403793,113860.0,113850.0,1.3496155]
[1757550665242,1.76403793,113860.0,113850.0,1.21215559]
[1757550665435,1.76403793,113860.0,113850.0,1.10147991]
[1757550667836,0.96471793,113860.0,113850.0,1.57675292]
[1757550668142,1.76403793,113860.0,113850.0,1.93755292]
[1757550669444,1.73745793,113860.0,113850.0,1.93755292]
[1757550669637,1.73745793,113860.0,113850.0,2.09541604]
[1757550671943,1.73745793,113860.0,113850.0,1.93755292]
[1757550672646,0.93817793,113860.0,113850.0,1.93755292]
[1757550672845,1.73741793,113860.0,113850.0,1.93755292]
[1757550674249,0.93817793,113860.0,113850.0,1.93755292]
[1757550674451,1.73741793,113860.0,113850.0,1.84586612]
[1757550675845,0.93817793,113860.0,113850.0,1.84586612]
[1757550676050,1.73741793,113860.0,113850.0,1.84586612]
[1757550676447,1.73737793,113860.0,113850.0,1.84586612]
[1757550677655,1.73737793,113860.0,113850.0,2.00357913]
[1757550678446,1.73737793,113860.0,113850.0,1.84586612]
[1757550685756,1.73733793,113860.0,113850.0,1.84586612]
[1757550687162,0.93817793,113860.0,113850.0,1.84586612]
[1757550687464,1.73733793,113860.0,113850.0,1.84586612]
[1757550687661,1.73729793,113860.0,113850.0,1.84586612]
[1757550688264,0.93817793,113860.0,113850.0,1.84586612]
[1757550688460,1.73729793,113860.0,113850.0,1.84586612]
[1757550689362,0.93817793,113860.0,113850.0,1.84586612]
[1757550689563,1.73729793,113860.0,113850.0,1.84586612]
[1757550690260,0.81575,113860.0,113850.0,1.84586612]
[1757550691564,0.81575,113860.0,113850.0,1.75805302]
[1757550691763,0.81575,113860.0,113850.0,1.66643651]
[1757550691964,0.81575,113860.0,113850.0,1.82424647]
[1757550693466,0.81575,113860.0,113850.0,1.66643651]
[1757550696470,0.81575,113860.0,113850.0,1.87106567]
[1757550697366,0.81575,113860.0,113850.0,2.02910596]
[1757550697773,0.81575,113860.0,113850.0,1.8244768]
[1757550697978,0.81575,113860.0,113850.0,1.9122901]
[1757550698168,0.01663,113860.0,113850.0,2.00390661]
[1757550698370,0.81571,113860.0,113850.0,1.82067359]
[1757550698570,0.81571,113860.0,113850.0,2.00390661]
[1757550698974,0.81571,113860.0,113850.0,1.82067359]
[1757550699475,0.81571,113860.0,113850.0,1.75390661]
[1757550703674,0.81571,113860.0,113850.0,1.66609331]
[1757550703875,0.81571,113860.0,113850.0,1.5744768]
[1757550706079,0.81571,113860.0,113850.0,1.77910596]
[1757550706273,0.81571,113860.0,113850.0,1.62106567]
[1757550706777,1.53853521,113860.0,113850.0,1.16864916]
[1757550707079,1.4469187,113860.0,113850.0,1.26026567]
[1757550709377,1.56494521,113860.0,113850.0,0.65864916]
[1757550710781,1.56650521,113860.0,113850.0,0.75026567]
[1757550711080,1.56650521,113860.0,113850.0,1.10026567]
[1757550711281,1.56650521,113860.0,113850.0,0.89563651]
[1757550711481,1.56650521,113860.0,113850.0,0.80402]
[1757550712281,0.76586521,113860.0,113850.0,0.80402]
[1757550712478,1.56654521,113860.0,113850.0,0.80402]
[1757550712878,1.4749287,113860.0,113850.0,0.89563651]
[1757550713079,1.4747687,113860.0,113850.0,0.89563651]
[1757550713881,1.56654521,113860.0,113850.0,0.80402]
[1757550715182,1.56654521,113860.0,113850.0,0.47402]
[1757550718884,0.76586521,113860.0,113850.0,0.47402]
[1757550719085,1.56634521,113860.0,113850.0,0.47402]
[1757550720296,1.4747287,113860.0,113850.0,0.47402]
[1757550720497,1.56634521,113860.0,113850.0,0.47402]
[1757550721098,0.76586521,113860.0,113850.0,0.47402]
[1757550721299,1.4746487,113860.0,113850.0,0.86563651]
[1757550721498,0.6742487,113860.0,113850.0,0.86563651]
[1757550721796,1.4746487,113860.0,113850.0,0.86563651]
[1757550722497,1.56626521,113860.0,113850.0,0.86563651]
[1757550722698,0.76586521,113860.0,113850.0,0.86563651]
[1757550722898,1.56658521,113860.0,113850.0,0.86563651]
[1757550724395,1.56658521,113860.0,113850.0,0.77402]
[1757550724603,1.56658521,113860.0,113850.0,0.86563651]
[1757550725098,0.76586521,113860.0,113850.0,0.86563651]
[1757550725299,1.56634521,113860.0,113850.0,0.86563651]
[1757550725498,1.31634521,113860.0,113850.0,0.41402]
[1757550725701,1.31634521,113860.0,113850.0,0.52446409]
[1757550727587,1.31634521,113860.0,113850.0,0.41402]
[1757550728198,1.2247287,113860.0,113850.0,0.41402]
[1757550728398,1.29593651,113860.0,113850.0,0.41402]
[1757550729299,0.93513651,113860.0,113850.0,0.41402]
[1757550729501,1.29593651,113860.0,113850.0,0.41402]
[1757550731303,1.38755302,113860.0,113850.0,0.41402]
[1757550731506,1.38755302,113860.0,113850.0,0.46450435]
[1757550732098,1.29593651,113860.0,113850.0,0.46450435]
[1757550732399,1.38755302,113860.0,113850.0,0.46450435]
[1757550733000,1.38755302,113860.0,113850.0,0.35402]
[1757550733397,1.38755302,113860.0,113850.0,0.46450435]
[1757550733904,1.29593651,113860.0,113850.0,0.46450435]
[1757550736307,1.47932808,113860.0,113850.0,0.46450435]
[1757550741913,1.47932808,113860.0,113850.0,0.35402]
[1757550743114,3.25028808,113860.0,113850.0,0.35402]
[1757550744319,3.52038552,113860.0,113850.0,0.35402]
[1757550744615,3.65788956,113860.0,113850.0,0.10496]
[1757550744816,3.65788956,113860.0,113850.0,0.37202]
[1757550745414,3.52038552,113860.0,113850.0,0.37202]
[1757550745813,3.65788956,113860.0,113850.0,0.37202]
[1757550746620,3.52038552,113860.0,113850.0,0.37202]
[1757550749626,3.64125956,113860.0,113850.0,0.26406]
[1757550749828,3.64125956,113860.0,113850.0,0.22255]
[1757550750726,2.84077956,113860.0,113850.0,0.22255]
[1757550751025,3.64017956,113860.0,113850.0,0.22255]
[1757550751624,3.64029956,113860.0,113850.0,0.22255]
[1757550751927,3.64129956,113860.0,113850.0,0.22255]
[1757550754020,3.64329956,113860.0,113850.0,0.22255]
[1757550757522,2.45627552,113860.0,113850.0,0.22255]
[1757550757730,3.25571552,113860.0,113850.0,0.24942]
[1757550758026,3.25571552,113860.0,113850.0,0.22255]
[1757550770638,2.45627552,113860.0,113850.0,0.22255]
[1757550770837,3.25575552,113860.0,113850.0,0.22255]
[1757550776644,3.25575552,113860.0,113850.0,0.2496]
[1757550776845,3.25575552,113860.0,113850.0,0.22255]
[1757550777544,3.39325956,113860.0,113850.0,0.22255]
[1757550786355,3.39321956,113860.0,113850.0,0.22255]
[1757550786851,3.39321956,113860.0,113850.0,0.18884157]
[1757550788751,3.39321956,113860.0,113850.0,0.02703972]
[1757550788949,3.64321956,113860.0,113850.0,0.22657]
[1757550791459,3.64321956,113860.0,113850.0,0.21086977]
[1757550791754,3.64321956,113860.0,113850.0,0.15804716]
[1757550791956,3.64321956,113860.0,113850.0,0.13016716]
[1757550792158,3.64321956,113860.0,113850.0,0.28541]
[1757550792358,3.64321956,113860.0,113850.0,0.27571285]
[1757550792956,3.64321956,113860.0,113850.0,0.20275285]
[1757550793265,3.64321956,113860.0,113850.0,0.18480732]
[1757550793553,3.39321956,113860.0,113850.0,0.18]
[1757550793752,3.39321956,113860.0,113850.0,0.16343]
[1757550794159,3.39321956,113860.0,113850.0,0.27985009]
[1757550794358,3.39321956,113860.0,113850.0,0.29526009]
[1757550795260,3.39321956,113860.0,113850.0,0.14925009]
[1757550796060,3.39321956,113860.0,113850.0,0.32541]
[1757550798067,3.39321956,113860.0,113850.0,0.12200792]
[1757550798262,3.39321956,113860.0,113850.0,0.08091792]
[1757550798468,3.48494464,113860.0,113850.0,0.30569295]
[1757550808068,3.48494464,113860.0,113850.0,0.23523087]
[1757550808274,3.48494464,113860.0,113850.0,0.25214087]
[1757550809476,3.25588268,113860.0,113850.0,0.25214087]
[1757550809671,2.45644268,113860.0,113850.0,0.25214087]
[1757550809975,3.25588268,113860.0,113850.0,0.25214087]
[1757550816077,3.25584268,113860.0,113850.0,0.25214087]
[1757550816578,2.45644268,113860.0,113850.0,0.25214087]
[1757550816779,3.25584268,113860.0,113850.0,0.25214087]
[1757550817783,2.45644268,113860.0,113850.0,0.24840138]
[1757550817983,3.25584268,113860.0,113850.0,0.24840138]
[1757550818181,2.45644268,113860.0,113850.0,0.24840138]
[1757550818386,3.25584268,113860.0,113850.0,0.24840138]
[1757550822683,2.45644268,113860.0,113850.0,0.24840138]
[1757550822988,3.25580268,113860.0,113850.0,0.24840138]
[1757550823290,3.25580268,113860.0,113850.0,0.10019138]
[1757550823687,3.25580268,113860.0,113850.0,0.33691]
[1757550824992,2.45644268,113860.0,113850.0,0.33691]
[1757550825201,3.25580268,113860.0,113850.0,0.33691]
[1757550826596,2.45644268,113860.0,113850.0,0.36395]
[1757550826902,3.1640776,113860.0,113850.0,0.36395]
[1757550827803,2.3647176,113860.0,113850.0,0.36395]
[1757550828000,3.1640776,113860.0,113850.0,0.36395]
[1757550831905,2.3647176,113860.0,113850.0,0.36395]
[1757550832107,3.1640376,113860.0,113850.0,0.36395]
[1757550836712,3.1640376,113860.0,113850.0,0.31011869]
[1757550836713,3.25576268,113860.0,113850.0,0.31011869]
[1757550836909,3.25576268,113860.0,113850.0,0.32635869]
[1757550837415,3.25576268,113860.0,113820.0,0.17462249]
[1757550837715,0.90505016,113830.0,113820.0,0.20377249]
[1757550837902,1.70433016,113830.0,113820.0,0.53377249]
[1757550838101,1.70433016,113830.0,113820.0,0.37572]
[1757550839209,3.47577016,113830.0,113820.0,0.37572]
[1757550839411,3.38404508,113830.0,113820.0,0.37672]
[1757550840909,3.38404508,113830.0,113820.0,0.37872]
[1757550842114,3.45525272,113830.0,113820.0,0.37872]
[1757550844212,4.95525272,113830.0,113820.0,0.37872]
[1757550845018,5.0469778,113830.0,113820.0,0.37872]
[1757550845515,4.95525272,113830.0,113820.0,0.37872]
[1757550848819,4.86352764,113830.0,113820.0,0.37872]
[1757550849118,4.95525272,113830.0,113820.0,0.37872]
[1757550850515,4.15597272,113830.0,113820.0,0.37872]
[1757550850720,4.95525272,113830.0,113820.0,0.37872]
[1757550852315,4.15597272,113830.0,113820.0,0.37872]
[1757550852519,4.95525272,113830.0,113820.0,0.37872]
[1757550853711,4.15597272,113830.0,113820.0,0.37872]
[1757550853910,4.95525272,113830.0,113820.0,0.37872]
[1757550854421,4.15597272,113830.0,113820.0,0.37872]
[1757550854622,4.95525272,113830.0,113820.0,0.37872]
[1757550855819,4.15597272,113830.0,113820.0,0.37872]
[1757550856122,4.95525272,113830.0,113820.0,0.37872]
[1757550856322,4.86352764,113830.0,113820.0,0.4892908]
[1757550856524,4.95525272,113830.0,113820.0,0.4892908]
[1757550857919,4.06424764,113830.0,113820.0,0.58101588]
[1757550858125,4.95525272,113830.0,113820.0,0.6092908]
[1757550858324,4.95525272,113830.0,113820.0,0.49872]
[1757550858525,4.95525272,113830.0,113820.0,0.37872]
[1757550860321,5.00108801,113830.0,113820.0,0.51628037]
[1757550862127,5.00108801,113830.0,113820.0,0.37872]
[1757550865530,5.00108801,113830.0,113820.0,0.4892908]
[1757550867728,5.13864838,113830.0,113820.0,0.4892908]
[1757550868231,5.00108801,113830.0,113820.0,0.4892908]
[1757550868421,5.13864838,113830.0,113820.0,0.4892908]
[1757550872931,3.63864838,113830.0,113820.0,0.4892908]
[1757550874338,3.88864838,113830.0,113820.0,0.4601408]
[1757550874537,4.02620875,113830.0,113820.0,0.44703734]
[1757550874730,4.02620875,113830.0,113820.0,0.33646654]
[1757550875429,3.88864838,113830.0,113820.0,0.33646654]
[1757550876041,3.88864838,113830.0,113820.0,0.33546654]
[1757550876742,3.88864838,113830.0,113820.0,0.33446654]
[1757550877441,3.88908838,113830.0,113820.0,0.33446654]
[1757550878038,3.88900838,113830.0,113820.0,0.33446654]
[1757550878633,3.08936838,113830.0,113820.0,0.33446654]
[1757550878835,3.88900838,113830.0,113820.0,0.34581789]
[1757550879029,3.88900838,113830.0,113820.0,0.17773789]
[1757550879541,3.63900838,113830.0,113820.0,0.17773789]
[1757550880840,3.77656875,113830.0,113820.0,0.17773789]
[1757550887343,3.63900838,113830.0,113820.0,0.17773789]
[1757550889847,3.63900838,113830.0,113820.0,0.17673789]
[1757550890046,3.64400838,113830.0,113820.0,0.17773789]
[1757550890442,4.03156875,113830.0,113820.0,0.17773789]
[1757550890648,4.03156875,113830.0,113820.0,0.18360789]
[1757550891145,4.03456875,113830.0,113820.0,0.18360789]
[1757550892048,3.23492875,113830.0,113820.0,0.18360789]
[1757550892449,4.03428875,113830.0,113820.0,0.18360789]
[1757550892749,4.03428875,113830.0,113820.0,0.15191789]
[1757550892948,3.23492875,113830.0,113820.0,0.16930789]
[1757550893150,4.03428875,113830.0,113820.0,0.33739]
[1757550894743,4.03428875,113830.0,113820.0,0.33238]
[1757550894948,4.03428875,113830.0,113820.0,0.30101]
[1757550895150,4.03428875,113830.0,113820.0,0.26932]
[1757550895345,4.03428875,113830.0,113820.0,0.23772]
[1757550895647,4.03428875,113830.0,113820.0,0.22711]
[1757550896643,4.03428875,113830.0,113820.0,0.22811]
[1757550896849,4.03128875,113830.0,113820.0,0.22811]
[1757550897052,4.03428875,113830.0,113820.0,0.22811]
[1757550897247,4.03428875,113830.0,113820.0,0.18416782]
[1757550897445,4.03428875,113830.0,113820.0,0.14]
[1757550897651,0.3608,113820.0,113790.0,0.01739]
[1757550897850,1.13428111,113800.0,113790.0,0.21739]
[1757550899151,1.13428111,113800.0,113790.0,0.21571222]
[1757550899850,1.13428111,113800.0,113790.0,0.21671222]
[1757550900351,1.13528111,113800.0,113790.0,0.21671222]
[1757550900652,1.13528111,113800.0,113790.0,0.04474685]
[1757550900852,1.13528111,113800.0,113780.0,0.01739]
[1757550901053,0.77548111,113800.0,113790.0,0.003]
[1757550901251,1.66064037,113800.0,113790.0,0.313]
[1757550901451,1.66064037,113800.0,113790.0,0.33039]
[1757550902050,1.66939178,113800.0,113790.0,0.33039]
[1757550902353,1.94451252,113800.0,113790.0,0.27198408]
[1757550902648,1.94351252,113800.0,113790.0,0.24608172]
[1757550902850,1.94451252,113800.0,113790.0,0.24608172]
[1757550903054,1.94451252,113800.0,113790.0,0.09994172]
[1757550903256,1.94451252,113800.0,113780.0,0.01839]
[1757550903458,0.49836037,113790.0,113780.0,0.33739]
[1757550905556,0.63592074,113790.0,113780.0,0.33739]
[1757550905756,0.63892074,113790.0,113780.0,0.33839]
[1757550905956,0.77648111,113790.0,113780.0,0.33839]
[1757550906956,1.57596111,113790.0,113780.0,0.33839]
[1757550907454,1.43840074,113790.0,113780.0,0.33839]
[1757550907660,0.63892074,113790.0,113780.0,0.33839]
[1757550907857,1.23407692,113790.0,113780.0,0.33839]
[1757550908060,1.50919766,113790.0,113780.0,0.33839]
[1757550909161,0.70971766,113790.0,113780.0,0.33839]
[1757550909360,1.50923766,113790.0,113780.0,0.36857]
[1757550909762,1.50923766,113790.0,113780.0,0.33839]
[1757550912469,0.70971766,113790.0,113780.0,0.33839]
[1757550913365,1.50927766,113790.0,113780.0,0.33839]
[1757550913660,0.70971766,113790.0,113780.0,0.33839]
[1757550913865,1.50927766,113790.0,113780.0,0.33839]
[1757550916566,0.70971766,113790.0,113780.0,0.33839]
[1757550916763,1.50927766,113790.0,113780.0,0.33839]
[1757550918368,0.70971766,113790.0,113780.0,0.36857]
[1757550918570,1.50927766,113790.0,113780.0,0.33839]
[1757550920465,1.41777124,113790.0,113780.0,0.33839]
[1757550922073,1.41777124,113790.0,113780.0,0.36857]
[1757550923668,0.43459692,113790.0,113780.0,0.36857]
[1757550923869,0.52640408,113790.0,113780.0,0.36857]
[1757550924076,1.32596408,113790.0,113780.0,0.36857]
[1757550926476,1.41777124,113790.0,113780.0,0.36857]
[1757550926774,3.19017124,113790.0,113780.0,0.36857]
[1757550928674,2.47846894,113790.0,113780.0,0.36857]
[1757550928872,2.29485462,113790.0,113780.0,0.73857]
[1757550929078,3.18622178,113790.0,113780.0,0.73857]
[1757550929277,3.18622178,113790.0,113780.0,0.61857]
[1757550934782,2.38666178,113790.0,113780.0,0.61857]
[1757550934983,3.18622178,113790.0,113780.0,0.61857]
[1757550939286,3.18622178,113790.0,113780.0,0.36857]
[1757550939980,3.54702178,113790.0,113780.0,0.36857]
[1757550945783,2.74746178,113790.0,113780.0,0.36857]
[1757550946090,3.54694178,113790.0,113780.0,0.36857]
[1757550954193,2.74746178,113790.0,113780.0,0.36857]
[1757550954491,3.54694178,113790.0,113780.0,0.36857]
[1757550954794,2.74746178,113790.0,113780.0,0.36857]
[1757550954993,3.54694178,113790.0,113780.0,0.36857]
[1757550956194,2.74746178,113790.0,113780.0,0.36857]
[1757550956398,3.54694178,113790.0,113780.0,0.36857]
[1757550956592,2.74746178,113790.0,113780.0,0.36857]
[1757550956793,3.54690178,113790.0,113780.0,0.36857]
[1757550957793,2.74746178,113790.0,113780.0,0.36857]
[1757550957997,3.54690178,113790.0,113780.0,0.36857]
[1757550958196,2.74746178,113790.0,113780.0,0.36857]
[1757550958395,3.54690178,113790.0,113780.0,0.36857]
[1757550958997,2.74746178,113790.0,113780.0,0.36857]
[1757550959297,3.54690178,113790.0,113780.0,0.36857]
[1757550960502,3.45509462,113790.0,113780.0,0.36857]
[1757550960695,3.54690178,113790.0,113780.0,0.36857]
[1757550961400,2.74746178,113790.0,113780.0,0.36857]
[1757550961603,3.54690178,113790.0,113780.0,0.36857]
[1757550961800,3.45509462,113790.0,113780.0,0.91218432]
[1757550962001,3.45509462,113790.0,113780.0,1.41218432]
[1757550962201,3.45509462,113790.0,113780.0,1.32037716]
[1757550966198,2.65565462,113790.0,113780.0,1.32037716]
[1757550966504,3.45505462,113790.0,113780.0,1.32037716]
[1757550967009,3.3842577,113790.0,113780.0,1.32037716]
[1757550967405,2.5848577,113790.0,113780.0,1.32037716]
[1757550967607,3.3842577,113790.0,113780.0,1.32037716]
[1757550968111,2.5848577,113790.0,113780.0,1.32037716]
[1757550968407,3.3842177,113790.0,113780.0,1.32037716]
[1757550968600,2.5848577,113790.0,113780.0,1.41218432]
[1757550968793,3.3842177,113790.0,113780.0,1.41218432]
[1757550971708,2.5848577,113790.0,113780.0,1.41218432]
[1757550971908,3.3842177,113790.0,113780.0,1.41218432]
[1757550974498,2.5848577,113790.0,113780.0,1.41218432]
[1757550974701,3.0233777,113790.0,113780.0,1.50004972]
[1757550976107,2.2240577,113790.0,113780.0,1.50004972]
[1757550976308,3.0233777,113790.0,113780.0,1.50004972]
[1757550977613,2.2240577,113790.0,113780.0,1.50004972]
[1757550977810,3.0233377,113790.0,113780.0,1.50004972]
[1757550978507,2.2240577,113790.0,113780.0,1.50004972]
[1757550978709,3.0233377,113790.0,113780.0,1.50004972]
[1757550982320,2.6625377,113790.0,113780.0,1.95246888]
[1757550982615,2.6625377,113790.0,113780.0,2.11019115]
[1757550984712,2.6625377,113790.0,113780.0,1.74939115]
[1757550984713,2.64825658,113790.0,113780.0,1.74939115]
[1757550986319,2.64825658,113790.0,113780.0,2.11019115]
[1757550986519,2.64825658,113790.0,113780.0,1.74939115]
[1757550986816,2.64825658,113790.0,113780.0,2.11019115]
[1757550987421,2.64825658,113790.0,113780.0,1.86019115]
[1757550987422,1.76111888,113790.0,113780.0,1.86019115]
[1757550987617,2.42050888,113790.0,113780.0,2.24780789]
[1757550987923,1.48157888,113790.0,113780.0,2.24780789]
[1757550988221,2.23414888,113790.0,113780.0,2.07269562]
[1757550990419,2.23414888,113790.0,113780.0,2.23050905]
[1757550991821,2.23410888,113790.0,113780.0,2.23050905]
[1757550992718,2.23410888,113790.0,113780.0,2.07269562]
[1757550993516,2.23410888,113790.0,113780.0,2.27732478]
[1757550994615,2.21983024,113790.0,113780.0,2.27732478]
[1757550995416,1.37412024,113790.0,113780.0,2.27732478]
[1757550995616,2.09735024,113790.0,113780.0,2.27732478]
[1757550996619,1.29827024,113790.0,113780.0,2.27732478]
[1757550996820,2.07397024,113790.0,113780.0,2.27832478]
[1757550997921,2.07397024,113790.0,113780.0,2.27732478]
[1757550998121,2.07497024,113790.0,113780.0,2.27932478]
[1757550999422,2.07497024,113790.0,113780.0,2.02932478]
[1757551002823,2.07497024,113790.0,113780.0,1.66852478]
[1757551003019,2.07497024,113790.0,113780.0,2.39012478]
[1757551004624,2.06069208,113790.0,113780.0,2.39012478]
[1757551013132,0.81737,113790.0,113780.0,2.39012478]
[1757551014636,0.00405185,113790.0,113780.0,2.39012478]
[1757551014836,0.80289185,113790.0,113780.0,2.39012478]
[1757551017637,0.80289185,113790.0,113780.0,2.18549562]
[1757551023644,1.05289185,113790.0,113780.0,1.97820528]
[1757551023833,1.41369185,113790.0,113780.0,0.52855988]
[1757551024030,1.58276859,113790.0,113780.0,0.323]
[1757551024429,1.58276859,113790.0,113780.0,0.46061674]
[1757551024838,1.72038533,113790.0,113780.0,0.22842]
[1757551025144,1.72038533,113790.0,113780.0,0.08655]
[1757551025443,0.04862,113770.0,113760.0,0.15812609]
[1757551025637,3.61577348,113770.0,113760.0,0.26]
[1757551026237,3.86577348,113770.0,113760.0,0.26]
[1757551026440,4.00343022,113770.0,113760.0,0.11813]
[1757551026641,3.86581348,113770.0,113760.0,0.11813]
[1757551026843,2.79985348,113770.0,113760.0,0.28]
[1757551027142,2.52462,113770.0,113760.0,0.47051674]
[1757551027341,3.46207674,113770.0,113760.0,0.47051674]
[1757551027640,2.66323674,113770.0,113760.0,0.3359]
[1757551027945,3.84965348,113770.0,113760.0,0.30522]
[1757551028137,3.84965348,113770.0,113760.0,0.288]
[1757551028444,3.84965348,113770.0,113760.0,0.285]
[1757551028642,3.84965348,113770.0,113760.0,0.286]
[1757551028847,3.04985348,113770.0,113760.0,0.281]
[1757551029144,3.91942029,113770.0,113760.0,0.29922]
[1757551029740,3.91942029,113770.0,113760.0,0.21510826]
[1757551029948,3.91942029,113770.0,113760.0,0.13774826]
[1757551030142,3.91942029,113770.0,113760.0,0.10605826]
[1757551030440,4.05703703,113770.0,113700.0,0.13761674]
[1757551030642,0.49841674,113710.0,113700.0,0.9479]
[1757551030842,2.13276,113710.0,113700.0,1.22313348]
[1757551031142,1.78096313,113710.0,113700.0,1.22313348]
[1757551031451,2.57092,113710.0,113700.0,1.47313348]
[1757551031648,2.57092,113710.0,113700.0,1.83393348]
[1757551032149,2.13276,113710.0,113700.0,1.33551674]
[1757551032344,2.13276,113710.0,113700.0,1.22313348]
[1757551032546,2.93172,113710.0,113700.0,1.08551674]
[1757551032742,3.06933674,113710.0,113700.0,1.08551674]
[1757551032937,3.06933674,113710.0,113700.0,1.08651674]
[1757551033340,2.13276,113710.0,113700.0,1.22413348]
[1757551033549,2.9318,113710.0,113700.0,1.22313348]
[1757551033750,2.572,113710.0,113700.0,1.61775022]
[1757551033953,2.572,113710.0,113700.0,2.06647732]
[1757551034250,1.77296,113710.0,113700.0,1.98255022]
[1757551034449,2.57204,113710.0,113700.0,1.98255022]
[1757551035341,2.57204,113710.0,113700.0,2.07047732]
[1757551036546,2.57204,113710.0,113700.0,1.84493348]
[1757551036747,2.57204,113710.0,113700.0,1.98255022]
[1757551036944,2.57204,113710.0,113700.0,1.59493348]
[1757551038445,2.57212,113710.0,113700.0,1.59493348]
[1757551038645,2.57212,113710.0,113700.0,1.82047732]
[1757551038957,1.77296,113710.0,113700.0,1.82047732]
[1757551039141,2.57212,113710.0,113700.0,1.82047732]
[1757551040348,1.77296,113710.0,113700.0,1.82047732]
[1757551040746,2.57212,113710.0,113700.0,1.82047732]
[1757551042454,2.57212,113710.0,113700.0,1.59135058]
[1757551042751,2.57212,113710.0,113700.0,1.50342348]
[1757551044854,1.77296,113710.0,113700.0,1.59135058]
[1757551045055,2.5722,113710.0,113700.0,1.59135058]
[1757551045253,1.77296,113710.0,113700.0,1.59135058]
[1757551045454,2.5722,113710.0,113700.0,1.59135058]
[1757551047759,1.77296,113710.0,113700.0,1.68321232]
[1757551047954,2.5722,113710.0,113700.0,1.68321232]
[1757551049555,2.5722,113710.0,113700.0,1.59135058]
[1757551049858,2.5722,113710.0,113700.0,1.68321232]
[1757551050558,2.5722,113710.0,113700.0,1.93321232]
[1757551055854,1.77296,113710.0,113700.0,1.93321232]
[1757551056049,2.57224,113710.0,113700.0,1.93321232]
[1757551056451,1.62341,113710.0,113700.0,1.68321232]
[1757551056652,1.77288,113740.0,113730.0,0.1381439]
[1757551056965,2.57216,113740.0,113730.0,1.22186738]
[1757551057154,2.57216,113740.0,113730.0,1.58266738]
[1757551058251,1.77288,113740.0,113730.0,1.58466738]
[1757551058562,2.57212,113740.0,113730.0,1.69468058]
[1757551059361,2.57212,113740.0,113730.0,1.69768058]
[1757551059362,2.57312,113740.0,113730.0,1.69768058]
[1757551064662,2.57304,113740.0,113730.0,1.69768058]
[1757551072271,2.57304,113740.0,113730.0,1.5139571]
[1757551072470,2.57304,113740.0,113730.0,1.69768058]
[1757551072771,2.57304,113740.0,113730.0,1.58766738]
[1757551075171,2.57304,113740.0,113730.0,0.95524]
[1757551075373,2.82304,113740.0,113730.0,0.95524]
[1757551075674,2.82304,113740.0,113730.0,0.68751234]
[1757551075874,2.82304,113740.0,113730.0,0.57710174]
[1757551076276,2.82304,113740.0,113730.0,1.06751234]
[1757551081587,2.82304,113740.0,113730.0,0.95710174]
[1757551081986,2.82304,113740.0,113730.0,1.11522783]
[1757551082487,2.65686627,113740.0,113730.0,1.11522783]
[1757551082691,2.65670627,113740.0,113730.0,1.11522783]